[Event "1st Anfield Cup 2022"]
[Site "Kyiv"]
[Date "2022.09.25"]
[Round "8.4"]
[White "Grinev, Valeriy"]
[Black "Pavlov, Sergey"]
[Result "1/2-1/2"]
[ECO "D10"]
[WhiteElo "2425"]
[BlackElo "2333"]
[Annotator "TA"]
[PlyCount "37"]
[EventDate "2022.09.20"]
[EventType "swiss"]
[EventCountry "UKR"]
[SourceTitle "playchess.com"]
[Source "ChessBase"]
[SourceQuality "1"]
[TimeControl "900+10"]

{[%evp 13,37,18,25,17,19,17,12,9,9,3,14,-18,-25,-26,-25,-45,-33,-34,-16,-25,0,-30,0,0,0,-42]} 1. d4 {[%emt 0:00:02]} d5 {[%emt 0:00:03]} 2. c4 {[%emt 0:00:05]} c6 {[%emt 0:00:02]} 3. cxd5 {[%emt 0:00:10]} cxd5 {[%emt 0:00:02]} 4. Bf4 {[%emt 0:00:02]} Nc6 {[%emt 0:00:27]} 5. e3 {[%emt 0:00:02]} Nf6 {[%emt 0:00:17]} 6. Nc3 {[%emt 0:00:02]} a6 {[%emt 0:00:31]} 7. Bd3 {[%emt 0:00:07]} Bg4 {[%emt 0:00:21]} 8. Qb3 {[%emt 0:00:08] D10: Slav Defence: 3 cxd5 (without early Nf3) and 3 Nc3.} Na5 {[%emt 0:00:37]} 9. Qc2 {[%emt 0:00:03]} Rc8 {[%emt 0:00:48]} 10. h3 {[%emt 0:00:50]} Bh5 11. Qa4+ {[%emt 0:00:07]} Nc6 {[%emt 0:00:33]} 12. Nf3 {[%emt 0:00:28]} Bxf3 {[%emt 0:03:05]} 13. gxf3 {[%emt 0:00:02]} e6 {[%emt 0:00:09] [#]} 14. Rg1 $146 {[%emt 0:01:46]} ({Predecessor:} 14. a3 Bd6 15. Ne2 O-O 16. Bg5 h6 17. Bh4 Be7 18. f4 Na5 19. O-O Nc4 20. Bxc4 Rxc4 {0-1 (34) Reuter,M (2035)-Allaert,D (2142) Nordrheinwestfalen 2015}) 14... g6 {[%emt 0:00:35]} 15. Rc1 {[%emt 0:00:19]} Bd6 {[%emt 0:04:11] [#] And now ...Bxf4 would win.} 16. Bh6 {[%emt 0:02:14]} Bf8 {[%emt 0:01:16]} 17. Bf4 {[%emt 0:03:42]} Bd6 {[%emt 0:00:02] Threatens to win with ...Bxf4.} 18. Bh6 {[%emt 0:00:28]} Bf8 {[%emt 0:00:01]} 19. Bf4 {Weighted Error Value: White=0.06 (flawless) /Black=0.07 (flawless)} 1/2-1/2

[Event "1st Anfield Cup 2022"]
[Site "Kyiv"]
[Date "2022.09.25"]
[Round "8.5"]
[White "Skliarov, Viktor"]
[Black "Samunenkov, Ihor"]
[Result "1/2-1/2"]
[ECO "B43"]
[WhiteElo "2384"]
[BlackElo "2469"]
[Annotator "TA"]
[PlyCount "167"]
[EventDate "2022.09.20"]
[EventType "swiss"]
[EventCountry "UKR"]
[SourceTitle "playchess.com"]
[Source "ChessBase"]
[SourceQuality "1"]
[TimeControl "900+10"]

{[%evp 15,167,33,26,18,39,28,24,41,39,6,95,33,76,72,158,156,161,91,107,72,211,205,253,243,246,220,204,206,587,589,500,478,596,594,589,591,522,290,287,153,232,136,150,75,79,72,60,64,82,68,68,71,66,39,39,39,40,30,31,31,31,17,24,0,39,39,78,41,72,54,62,59,130,130,128,90,269,255,377,369,621,611,531,395,388,381,608,608,550,563,29973,29974,29973,29970,29970,29971,29957,0,29977,29978,29982,29983,29984,0,0,0,5464,0,0,0,0,0,0,0,0,0,0,0,0,0,0,0,5450,0,0,0,0,0,0,0,0,0,0,0,0,0,0,0,0,0,0,0,0,0,0,0,0,0,0,0,0,0,0,0]} 1. e4 c5 2. Nf3 {[%emt 0:00:07]} e6 {[%emt 0:00:05]} 3. d4 {[%emt 0:00:08]} cxd4 {[%emt 0:00:04]} 4. Nxd4 {[%emt 0:00:03]} a6 {[%emt 0:00:08]} 5. Nc3 {[%emt 0:00:52]} b5 {[%emt 0:00:04]} 6. Bd3 {[%emt 0:01:05]} Bb7 {[%emt 0:00:03]} 7. O-O {[%emt 0:00:05]} Nc6 {[%emt 0:00:03]} 8. Nxc6 {[%emt 0:00:35]} Bxc6 {[%emt 0:00:03]} 9. Re1 {[%emt 0:00:08] B43: Sicilian: Kan Variation: 5 Nc3.} Qb8 {[%emt 0:00:14]} 10. a4 {With the idea axb5.} b4 {[%emt 0:02:13] [#] 10...b4 has become a bit dusty these days.} 11. Nd5 {[%emt 0:01:16] White has an edge.} Bd6 {[%emt 0:01:03] Inhibits Bf4.} 12. h3 {[%emt 0:00:46][%cal Oc1e3] [#]} Be5 $146 {[%emt 0:03:49] [#]} (12... Ne7 $11 13. Nxe7 Bxe7) ({Predecessor:} 12... Ne7 13. Nxe7 Bxe7 14. e5 O-O 15. Be4 Bxe4 16. Rxe4 d5 17. exd6 Qxd6 18. Qxd6 Bxd6 {½-½ (32) Movsesian,S (2649)-Babula,V (2550) Pardubice 2019}) 13. Be3 {[%emt 0:03:04]} Nf6 {[%emt 0:03:42]} (13... exd5 14. exd5 Bxd5 15. f4 $16) (13... Bxb2 14. Rb1 Bxd5 15. Rxb2 $16 (15. exd5 Bc3 $14)) 14. Nb6 $36 {[%emt 0:01:43][%mdl 2048] White has strong initiative.} Ra7 {[%emt 0:00:38]} (14... a5 $142) 15. Nc4 $16 {[%emt 0:00:04]} Ra8 {[%emt 0:00:45]} 16. Nxe5 {[%emt 0:00:51]} (16. Bc5 $18) 16... Qxe5 {[%emt 0:00:03]} 17. f4 {[%emt 0:00:04]} Qxb2 {[%emt 0:02:01]} (17... Qc7 $16) 18. Rb1 $18 {[%emt 0:00:49]} Qa3 {[%emt 0:00:56]} 19. Bc5 {[%emt 0:00:06]} Qc3 {[%emt 0:00:40] Inhibits Bc4.} 20. Bxb4 {[%emt 0:00:21] A strong pair of Bishops.} Qd4+ {[%emt 0:00:01]} 21. Kh2 {[%emt 0:00:46]} d5 $2 {[%emt 0:01:27] [#]} (21... Qf2) 22. Bb5 $1 {[%emt 0:01:49][%mdl 512]} Qb6 {[%emt 0:00:01]} 23. exd5 {[%emt 0:00:12]} axb5 {[%emt 0:00:25]} 24. dxc6 {[%emt 0:00:02]} Qxc6 {[%emt 0:00:17]} 25. axb5 {[%emt 0:00:27]} Qxb5 {[%emt 0:00:05]} 26. f5 Qd5 27. fxe6 {[%emt 0:01:15]} (27. Qe2 $18) 27... fxe6 {[%emt 0:00:35]} (27... Qxd1 $16 {was called for.} 28. Rbxd1 fxe6 29. Rxe6+ Kf7 30. Re7+ Kg6) 28. Qxd5 {[%emt 0:00:18]} (28. Qe2 $1 $18 {And now Rbd1 would win.} Qc6 29. Rbd1 (29. Qxe6+ Qxe6 30. Rxe6+ Kf7 $16)) 28... Nxd5 $16 {[%emt 0:00:01]} 29. Rxe6+ {[%emt 0:00:01]} (29. Bd6 $142 {aiming for Rb7.} Rd8 30. Ba3 (30. Rxe6+ Kf7 $16)) 29... Kf7 {[%emt 0:00:01]} 30. Re5 {[%emt 0:01:10]} Nxb4 {[%emt 0:00:22]} 31. Rxb4 {[%emt 0:00:01][%mdl 4096] Endgame KRR-KRR} Rac8 {[%emt 0:00:18]} 32. Rf4+ {[%emt 0:01:38]} Kg6 {[%emt 0:00:08]} 33. Re3 {[%emt 0:00:34] White is more active.} h5 {[%emt 0:00:12]} 34. Rg3+ {[%emt 0:00:14]} Kh6 {[%emt 0:00:01]} 35. c4 {[%emt 0:00:11]} Rc6 {[%emt 0:00:15]} 36. Rf7 {[%emt 0:00:12]} g6 {[%emt 0:00:13]} 37. Rc3 {[%emt 0:00:04]} Rd8 {[%emt 0:00:10]} 38. Rf4 {[%emt 0:00:14]} Rc5 {[%emt 0:00:09]} 39. Kg3 {[%emt 0:00:08]} Re8 {[%emt 0:00:12]} 40. Kf3 {[%emt 0:00:05]} Kg5 {[%emt 0:00:10]} 41. h4+ {[%emt 0:00:10]} Kh6 {[%emt 0:00:00]} 42. Re4 {[%emt 0:00:10]} Rd8 {[%emt 0:00:13]} 43. Ke3 {[%emt 0:00:06]} Rd6 {[%emt 0:00:03]} (43... Rd1 $14) 44. Rd4 $1 {[%emt 0:00:10]} Re6+ {[%emt 0:00:21]} 45. Kd3 {[%emt 0:00:01] Strongly threatening Rd5.} Rc7 $2 {[%emt 0:00:15]} (45... Re1 $16) 46. Rd5 $18 {[%emt 0:00:29]} Rce7 {[%emt 0:00:07]} (46... Kg7 $142 47. c5 Kf6) 47. c5 {[%emt 0:00:12]} Re3+ $2 {[%emt 0:00:11]} (47... Ra7 48. g3 Kg7) 48. Kc4 {[%emt 0:00:01] Rxe3 is the strong threat.} R3e4+ {[%emt 0:00:10]} 49. Kb5 {[%emt 0:00:06] Threatens to win with Rc4.} Rb7+ {[%emt 0:00:08]} 50. Kc6 {[%emt 0:00:01]} Rf7 {[%emt 0:00:03]} (50... Ree7 $142 51. Rd4 Ra7) 51. g3 {[%emt 0:00:09]} Rfe7 {[%emt 0:00:04]} 52. Rd7 {[%emt 0:00:25]} Re3 {[%emt 0:00:23]} 53. Rxe3 {[%emt 0:00:15]} Rxe3 {[%emt 0:00:01] KR-KR} 54. Kb7 {[%emt 0:00:13]} Rxg3 {[%emt 0:00:19]} 55. c6 {[%emt 0:00:06]} Rb3+ {[%emt 0:00:10]} 56. Kc8 $2 {[%emt 0:00:12]} (56. Ka7 Rc3 57. Kb7 Rb3+ 58. Ka6 Rc3 59. Kb6 g5 60. Rd6+ Kg7 61. hxg5) 56... g5 $2 {[%emt 0:00:13][%mdl 8192]} (56... Rb4 $11) 57. Rd6+ {[%emt 0:00:03]} Kg7 {[%emt 0:00:01]} 58. hxg5 {[%emt 0:00:02]} h4 {[%emt 0:00:18]} 59. Rh6 $2 {[%emt 0:00:04]} (59. c7 {mates} Rf3 60. Kb7 Rc3 61. c8=Q Rxc8 62. Kxc8 Kh7 63. Kd7 Kg7 64. Rf6) 59... h3 $11 {[%emt 0:00:05]} 60. c7 {[%emt 0:00:07]} Rg3 $2 {[%emt 0:00:13][%mdl 8192] [#]} (60... Rd3 $11) 61. Kb7 $2 {[%emt 0:00:36]} (61. Rb6 $1 $18 h2 62. Kb8 (62. Rh6 Rg2 $11) 62... Rxg5 63. c8=Q) 61... Rb3+ {[%emt 0:00:04]} 62. Ka6 {[%emt 0:00:01]} Rc3 {[%emt 0:00:12]} 63. Kb6 {[%emt 0:00:15][%cal Oh6h3]} Rb3+ {[%emt 0:00:04]} 64. Kc5 {[%emt 0:00:09] White wants to mate with Kd4.} Rc3+ {[%emt 0:00:02]} 65. Kd6 {[%emt 0:00:01][%cal Oh6h3]} Rd3+ $1 {[%emt 0:00:17]} 66. Ke7 {[%emt 0:00:21]} Rc3 {[%emt 0:00:20]} 67. Kd8 {[%emt 0:00:06]} Rd3+ {[%emt 0:00:05]} 68. Kc8 $2 {[%emt 0:00:01][%mdl 8192]} (68. Ke7 $11 Rc3 69. Kd6 Rd3+ 70. Ke6) 68... Rg3 $18 {[%emt 0:00:10] [#]} 69. Rh4 $2 {[%emt 0:00:22]} (69. Rb6 $1 $18 {Intending Kb8 and mate.} h2 70. Kb8 (70. Rh6 Rg2 $11) 70... Rxg5 71. c8=Q) 69... Kg6 $11 {[%emt 0:00:18] The position is equal.} 70. Kd7 {[%emt 0:00:15]} Rd3+ {[%emt 0:00:09]} 71. Ke6 {[%emt 0:00:06]} Rc3 {[%emt 0:00:10]} 72. Kd6 {[%emt 0:00:13]} Rd3+ {[%emt 0:00:09]} 73. Kc5 {[%emt 0:00:10]} Rc3+ {[%emt 0:00:12]} 74. Kb6 {[%emt 0:00:01]} Rb3+ {[%emt 0:00:06]} 75. Ka5 {[%emt 0:00:14]} Rc3 {[%emt 0:00:07]} 76. Kb6 {[%emt 0:00:12]} Rb3+ {[%emt 0:00:05]} 77. Kc5 {[%emt 0:00:02]} Rc3+ {[%emt 0:00:07]} 78. Rc4 {[%emt 0:00:17]} Rxc4+ {[%emt 0:00:14]} 79. Kxc4 {[%emt 0:00:01] KPP-KP} h2 {[%emt 0:00:01]} 80. c8=Q {[%emt 0:00:03] Qh8 would kill now.} h1=Q {[%emt 0:00:03] Prevents Qh8. ( -> ...Qc1+)} 81. Qg8+ {[%emt 0:00:04]} Kf5 {[%emt 0:00:03]} 82. Qd5+ {[%emt 0:00:31]} Qxd5+ {[%emt 0:00:02]} 83. Kxd5 {[%emt 0:00:01]} Kxg5 {[%emt 0:00:01]} 84. Ke4 {Weighted Error Value: White=0.36/Black=0.65} 1/2-1/2

[Event "1st Anfield Cup 2022"]
[Site "Kyiv"]
[Date "2022.09.25"]
[Round "8.6"]
[White "Kislinsky, Alexey"]
[Black "Dmitrenko, Viktor"]
[Result "1-0"]
[ECO "B14"]
[WhiteElo "2301"]
[BlackElo "2266"]
[Annotator "TA"]
[PlyCount "97"]
[EventDate "2022.09.20"]
[EventType "swiss"]
[EventCountry "UKR"]
[SourceTitle "playchess.com"]
[Source "ChessBase"]
[SourceQuality "1"]
[TimeControl "900+10"]

{[%evp 18,97,49,52,78,62,81,66,77,73,120,58,108,93,101,97,129,153,176,151,279,263,267,267,306,306,358,218,207,197,347,126,517,516,511,500,624,633,713,587,768,760,703,329,333,345,385,420,417,416,394,384,478,455,464,450,595,572,589,584,590,565,586,583,559,563,563,559,942,912,29974,1254,29975,29976,29981,29980,29981,29980,29994,29995,29995,29996]} 1. e4 {[%emt 0:00:03]} c6 {[%emt 0:00:10]} 2. d4 {[%emt 0:00:08]} d5 {[%emt 0:00:03]} 3. exd5 {[%emt 0:00:02]} cxd5 {[%emt 0:00:02]} 4. c4 {[%emt 0:00:01]} Nf6 {[%emt 0:00:05]} 5. Nc3 {[%emt 0:00:01]} g6 {[%emt 0:00:04]} 6. cxd5 {[%emt 0:00:04]} Bg7 {[%emt 0:00:04]} 7. Bc4 {[%emt 0:00:01]} O-O {[%emt 0:00:08]} 8. Nge2 {[%emt 0:00:12]} Nbd7 {[%emt 0:00:24] 8...Na6 is not played anymore.} 9. Bb3 {[%emt 0:00:02]} Nb6 {[%emt 0:00:13]} 10. Nf4 {[%emt 0:00:02]} h6 {[%emt 0:00:10] B14: Caro-Kann: Panov-Botvinnik Attack with 5...e6 and 5...g6.} 11. O-O {[%emt 0:01:03][%cal Bh1f1,Bf1e1,Be1e4][%mdl 32]} Bg4 12. f3 {[%emt 0:00:51]} Bc8 {[%emt 0:01:39] [#] White is slightly better.} 13. a4 $146 {[%emt 0:00:11]} ({Predecessor:} 13. d6 e6 14. d5 exd5 15. Nfxd5 Nbxd5 16. Nxd5 Qxd6 17. Bf4 Qc5+ 18. Be3 Qd6 19. Bf4 {½-½ (47) Stephan,A (2278)-Okhotnik,V (2446) Schwarzach 2001}) 13... a5 {[%emt 0:00:03]} 14. h4 {[%emt 0:00:44]} (14. d6 $16 {aiming for dxe7.} e6 15. Nb5) 14... Ne8 {[%emt 0:01:05]} (14... h5 $14) 15. Re1 {[%emt 0:00:38]} Nd6 {[%emt 0:00:04]} 16. Be3 {[%emt 0:00:18]} Nf5 {[%emt 0:02:27] [#]} 17. Bf2 $1 {[%emt 0:00:03]} Qd6 {[%emt 0:00:02]} 18. Re4 {[%emt 0:03:06] Hoping for g4.} Bf6 {[%emt 0:02:26]} (18... h5 $16 {was worth a try.} 19. Nd3 Qd8) 19. Nb5 $18 {[%emt 0:01:21]} Qd8 {[%emt 0:00:11]} 20. d6 {[%emt 0:03:05]} e6 {[%emt 0:00:13]} 21. d5 {[%emt 0:03:00]} exd5 {[%emt 0:02:37]} 22. Nxd5 {[%emt 0:00:02]} Nxd5 {[%emt 0:00:02]} 23. Qxd5 {[%emt 0:00:02][%cal Oh4h5] And now h5! would win.} Ra6 {[%emt 0:01:40] [#]} (23... Bd7 $142 24. h5 (24. Qxb7 Bxb5 25. axb5 Nxd6 $11) 24... Bc6) 24. h5 $2 {[%emt 0:00:39]} (24. Rd1 $1 $18 {and the rest is easy.}) 24... Be6 $2 {[%emt 0:01:06][%mdl 8192] This move loses the game for Black.} (24... Nxd6 $16 {is tougher.} 25. Ree1 Nxb5) 25. Rxe6 {[%emt 0:00:05]} fxe6 {[%emt 0:00:01]} 26. Qxe6+ {[%emt 0:00:02]} Kg7 {[%emt 0:00:05]} 27. Rd1 {[%emt 0:00:15]} Rc6 {[%emt 0:01:49]} 28. hxg6 {[%emt 0:00:10]} Bh4 {[%emt 0:00:47]} 29. Bxh4 {[%emt 0:01:53]} Nxh4 {[%emt 0:00:17]} 30. Qe5+ {[%emt 0:01:14]} (30. f4 $142) 30... Qf6 {[%emt 0:00:31]} 31. Qxf6+ {[%emt 0:00:02]} Kxf6 {[%emt 0:00:03]} 32. d7 {[%emt 0:00:32]} Rd8 {[%emt 0:00:00]} 33. g7 {[%emt 0:00:01]} Kxg7 {[%emt 0:00:34]} 34. Nd4 {[%emt 0:00:01]} Rd6 {[%emt 0:00:52]} 35. Ne6+ {[%emt 0:00:03]} Rxe6 {[%emt 0:00:03]} 36. Bxe6 {[%emt 0:00:02][%mdl 4096] Endgame KRB-KRN} Kf6 {[%emt 0:00:01]} 37. Bh3 {[%emt 0:00:08]} Ng6 {[%emt 0:00:17]} 38. Rd6+ {[%emt 0:00:15]} Kf7 {[%emt 0:00:01]} 39. g3 {[%emt 0:00:27][%cal Bg2g3,Bg3g4,Bg4g5][%mdl 32]} Ne5 {[%emt 0:00:20]} 40. f4 {[%emt 0:00:04]} Nc4 {[%emt 0:00:07]} 41. Rxh6 {[%emt 0:00:11]} Nxb2 {[%emt 0:00:05]} 42. Rh7+ {[%emt 0:00:14]} Kf6 {[%emt 0:00:04]} 43. g4 {[%emt 0:00:13]} Nxa4 {[%emt 0:00:54]} 44. g5+ {[%emt 0:00:06]} Kg6 {[%emt 0:00:03]} 45. Re7 {[%emt 0:00:22] White mates.} Nc5 {[%emt 0:00:02]} 46. Kf2 {[%emt 0:00:08]} a4 {[%emt 0:00:43]} 47. Kf3 {[%emt 0:00:01]} a3 {[%emt 0:00:12]} 48. Kg4 {[%emt 0:00:03][%csl Gg4][%cal Rf4f5]} Rf8 {[%emt 0:00:03]} 49. d8=Q {[%emt 0:00:05] Weighted Error Value: White=0.55/Black=0.60} 1-0

[Event "1st Anfield Cup 2022"]
[Site "Kyiv"]
[Date "2022.09.25"]
[Round "9.1"]
[White "Golubev, Mikhail"]
[Black "Vysochin, Spartak"]
[Result "1/2-1/2"]
[ECO "C19"]
[WhiteElo "2461"]
[BlackElo "2512"]
[Annotator "TA"]
[PlyCount "39"]
[EventDate "2022.09.20"]
[EventType "swiss"]
[EventCountry "UKR"]
[SourceTitle "playchess.com"]
[Source "ChessBase"]
[SourceQuality "1"]
[TimeControl "900+10"]

{[%evp 21,22,9,9]} 1. e4 {[%emt 0:00:03]} e6 {[%emt 0:00:01]} 2. d4 {[%emt 0:00:01]} d5 {[%emt 0:00:01]} 3. Nc3 {[%emt 0:00:02]} Bb4 {[%emt 0:00:02]} 4. e5 {[%emt 0:00:02]} Ne7 {[%emt 0:00:03]} 5. a3 {[%emt 0:00:03]} Bxc3+ {[%emt 0:00:01]} 6. bxc3 {[%emt 0:00:03]} c5 {[%emt 0:00:02]} 7. a4 {[%emt 0:00:08]} Qc7 {[%emt 0:01:28]} 8. Nf3 {[%emt 0:00:04]} h6 {[%emt 0:00:10]} 9. Bb5+ {[%emt 0:01:19]} Bd7 {[%emt 0:00:15]} 10. Bd3 {[%emt 0:00:13]} Nbc6 {[%emt 0:00:59]} 11. O-O {[%emt 0:00:13]} b6 {[%emt 0:01:06] [#]} {Predecessor:} 12. Re1 $146 {C19: French: 3 Nc3 Bb4: Main line: 7 Nf3 and 7 a4.} Na5 13. Nh4 Rc8 14. Qg4 g6 15. Nf3 Nc4 16. Qh4 Ng8 17. Bg5 Bc6 18. a5 bxa5 19. dxc5 a4 20. Nd4 {1-0 (47) So,W (2780)-Duda,J (2737) Chess.com INT 2018} 1/2-1/2

[Event "1st Anfield Cup 2022"]
[Site "Kyiv"]
[Date "2022.09.25"]
[Round "9.2"]
[White "Kislinsky, Alexey"]
[Black "Bakhmatsky, Vladislav"]
[Result "0-1"]
[ECO "C22"]
[WhiteElo "2301"]
[BlackElo "2468"]
[Annotator "RC"]
[PlyCount "136"]
[EventDate "2022.09.20"]
[EventType "swiss"]
[EventCountry "UKR"]
[SourceTitle "playchess.com"]
[Source "ChessBase"]
[SourceQuality "1"]
[TimeControl "900+10"]

1. e4 {[%emt 0:00:03]} e5 {[%emt 0:00:01]} 2. d4 {[%emt 0:00:17]} exd4 {[%emt 0:00:01]} 3. Qxd4 {[%emt 0:00:01]} Nc6 {[%emt 0:00:01]} 4. Qd3 {[%emt 0:00:02]} Nf6 {[%emt 0:00:02]} 5. Nc3 {[%emt 0:00:01]} Bc5 {[%emt 0:03:27]} 6. Bf4 {[%emt 0:00:05]} d6 {[%emt 0:00:21]} 7. Qd2 {[%emt 0:00:23]} Be6 {[%emt 0:01:16]} 8. O-O-O {[%emt 0:00:08]} h6 {[%emt 0:02:38]} 9. f3 {[%emt 0:00:21]} Nh5 {[%emt 0:00:12]} 10. Nge2 {[%emt 0:01:30]} Nxf4 {[%emt 0:01:48]} 11. Nxf4 {[%emt 0:00:02]} a6 {[%emt 0:00:02]} 12. Kb1 {[%emt 0:00:29]} Qd7 {[%emt 0:00:21]} 13. h4 {[%emt 0:01:10]} O-O-O {[%emt 0:00:20]} 14. h5 {[%emt 0:00:10]} Rhe8 {[%emt 0:03:11]} 15. g3 {[%emt 0:00:23]} Ne5 {[%emt 0:00:28]} 16. Nxe6 {[%emt 0:00:17]} fxe6 {[%emt 0:00:02]} 17. Be2 {[%emt 0:00:13]} d5 {[%emt 0:01:08]} 18. f4 {[%emt 0:00:33]} d4 {[%emt 0:00:15]} 19. fxe5 {[%emt 0:00:23]} dxc3 {[%emt 0:00:02]} 20. Qxc3 {[%emt 0:00:01]} Bd4 {[%emt 0:00:18]} 21. Qc4 {[%emt 0:00:30]} b5 {[%emt 0:00:45]} 22. Qb3 {[%emt 0:02:38]} Qc6 {[%emt 0:00:28]} 23. c4 {[%emt 0:01:41]} Qxe4+ {[%emt 0:00:40]} 24. Bd3 {[%emt 0:00:09]} bxc4 {[%emt 0:00:06]} 25. Qxc4 {[%emt 0:00:10]} Qb7 {[%emt 0:00:02]} 26. Rh2 {[%emt 0:02:50]} Bxe5 {[%emt 0:00:13]} 27. Rc2 {[%emt 0:00:32]} Rd6 {[%emt 0:00:30]} 28. Re1 {[%emt 0:02:18]} Bf6 {[%emt 0:00:03]} 29. Be4 {[%emt 0:00:13]} Qb6 {[%emt 0:00:14]} 30. Rec1 {[%emt 0:00:04]} Re7 {[%emt 0:00:11]} 31. Bc6 {[%emt 0:00:18]} Rd4 {[%emt 0:00:30]} 32. Qe2 {[%emt 0:00:10]} Kb8 {[%emt 0:00:13]} 33. a3 {[%emt 0:00:41]} Ka7 {[%emt 0:00:20]} 34. Ka2 {[%emt 0:00:03]} Rd6 {[%emt 0:00:15]} 35. Rc4 {[%emt 0:00:11]} Rd4 {[%emt 0:00:06]} 36. R4c3 {[%emt 0:00:02]} Rd6 {[%emt 0:00:25]} 37. Rc4 {[%emt 0:01:40]} Rd4 {[%emt 0:00:01]} 38. R4c3 {[%emt 0:00:30]} Rd6 {[%emt 0:00:02]} 39. Rb3 {[%emt 0:00:01]} Rxc6 {[%emt 0:00:03]} 40. Rxb6 {[%emt 0:00:02]} Rxb6 {[%emt 0:00:00]} 41. b4 {[%emt 0:00:05]} Rd7 {[%emt 0:00:37]} 42. Rc2 {[%emt 0:00:21]} Kb8 {[%emt 0:00:08]} 43. Qc4 {[%emt 0:00:08]} Kb7 {[%emt 0:00:20]} 44. Qe4+ {[%emt 0:00:07]} Kb8 {[%emt 0:00:02]} 45. Qc4 Kb7 {[%emt 0:00:01]} 46. Kb3 {[%emt 0:00:36]} Kb8 {[%emt 0:00:07]} 47. Ka4 {[%emt 0:00:03]} Kb7 {[%emt 0:00:08]} 48. Qe4+ {[%emt 0:00:05]} Kb8 {[%emt 0:00:05]} 49. Qf4 {[%emt 0:00:20]} Kb7 {[%emt 0:00:06]} 50. Qc4 {[%emt 0:00:08]} Kb8 {[%emt 0:00:08]} 51. Re2 {[%emt 0:00:02]} Rdd6 {[%emt 0:00:04]} 52. Rc2 {[%emt 0:00:20]} Rd7 {[%emt 0:00:02]} 53. Qe4 {[%emt 0:00:02]} Rdd6 {[%emt 0:00:57]} 54. Rc4 {[%emt 0:00:06]} Rd7 {[%emt 0:00:04]} 55. g4 {[%emt 0:00:04]} Rdd6 {[%emt 0:00:04]} 56. Qg6 {[%emt 0:00:05]} Kb7 {[%emt 0:00:08]} 57. Qf7 {[%emt 0:00:26]} Rbc6 {[%emt 0:00:05]} 58. Re4 {[%emt 0:00:02]} Rc3 {[%emt 0:00:15]} 59. b5 {[%emt 0:00:30]} axb5+ {[%emt 0:00:10]} 60. Kb4 {[%emt 0:00:10]} Kb6 {[%emt 0:00:08]} 61. Qxf6 {[%emt 0:00:13]} gxf6 {[%emt 0:00:02]} 62. Kxc3 {[%emt 0:00:01]} c5 {[%emt 0:00:13]} 63. a4 {[%emt 0:00:13]} b4+ {[%emt 0:00:07]} 64. Kb3 {[%emt 0:00:04]} e5 {[%emt 0:00:06]} 65. Re3 {[%emt 0:00:06]} Rd4 {[%emt 0:00:05]} 66. Rf3 {[%emt 0:00:02]} Rf4 {[%emt 0:00:01]} 67. Rg3 {[%emt 0:00:10]} Ka5 {[%emt 0:00:03]} 68. Rg2 {[%emt 0:00:06]} c4+ {[%emt 0:00:02]} 0-1